[Event "Titled Tuesday Blitz June 27 Early 2023"]
[White "Morgunov, Anatoly"]
[Black "Domingo Nunez, Alejandro"]
[WhiteFideId "4145909"]
[BlackFideId "22245561"]
[WhiteElo "2455"]
[BlackElo "2600"]
[Result "1/2-1/2"]
[Round "5"]
[TimeControl "180+2"]
[Date "2023.06.27"]
[WhiteClock "0:00:11"]
[BlackClock "0:00:04"]
[Board "115"]

1. d4 {[%clk 0:03:00]}  g6 {[%clk 0:02:59]} 2. c4 {[%clk 0:03:01]}  Bg7 {[%clk 0:02:54]} 3. Nc3 {[%clk 0:03:01]}  d6 {[%clk 0:02:54]} 4. e4 {[%clk 0:03:01]}  Nf6 {[%clk 0:02:55]} 5. Be2 {[%clk 0:03:01]}  O-O {[%clk 0:02:54]} 6. Be3 {[%clk 0:03:01]}  e5 {[%clk 0:02:51]} 7. d5 {[%clk 0:03:01]}  Na6 {[%clk 0:02:51]} 8. g4 {[%clk 0:03:01]}  Nc5 {[%clk 0:02:51]} 9. f3 {[%clk 0:03:02]}  Ne8 {[%clk 0:02:52]} 10. h4 {[%clk 0:03:01]}  f5 {[%clk 0:02:51]} 11. gxf5 {[%clk 0:02:53]}  gxf5 {[%clk 0:02:51]} 12. Bxc5 {[%clk 0:02:51]}  dxc5 {[%clk 0:02:50]} 13. h5 {[%clk 0:02:45]}  Qg5 {[%clk 0:02:44]} 14. Bf1 {[%clk 0:02:08]}  Bh6 {[%clk 0:02:34]} 15. Qe2 {[%clk 0:01:43]}  Nd6 {[%clk 0:02:31]} 16. Qg2 {[%clk 0:01:17]}  Qxg2 {[%clk 0:02:21]} 17. Bxg2 {[%clk 0:01:18]}  Nxc4 {[%clk 0:02:21]} 18. Nb5 {[%clk 0:01:10]}  Rf7 {[%clk 0:01:46]} 19. b3 {[%clk 0:00:59]}  Ne3 {[%clk 0:01:45]} 20. Kf2 {[%clk 0:00:50]}  fxe4 {[%clk 0:01:44]} 21. Re1 {[%clk 0:00:44]}  exf3 {[%clk 0:01:36]} 22. Nxf3 {[%clk 0:00:44]}  e4 {[%clk 0:01:35]} 23. Rxe3 {[%clk 0:00:40]}  Bxe3+ {[%clk 0:01:35]} 24. Kxe3 {[%clk 0:00:40]}  exf3 {[%clk 0:01:36]} 25. Bxf3 {[%clk 0:00:41]}  a6 {[%clk 0:01:33]} 26. Rg1+ {[%clk 0:00:39]}  Kf8 {[%clk 0:01:32]} 27. Nc3 {[%clk 0:00:35]}  Bf5 {[%clk 0:01:33]} 28. d6 {[%clk 0:00:33]}  Re8+ {[%clk 0:01:32]} 29. Kd2 {[%clk 0:00:32]}  cxd6 {[%clk 0:01:09]} 30. h6 {[%clk 0:00:32]}  Be6 {[%clk 0:00:59]} 31. Bh5 {[%clk 0:00:29]}  d5 {[%clk 0:00:31]} 32. Bxf7 {[%clk 0:00:30]}  Bxf7 {[%clk 0:00:30]} 33. Rf1 {[%clk 0:00:29]}  Re5 {[%clk 0:00:27]} 34. Na4 {[%clk 0:00:26]}  d4 {[%clk 0:00:27]} 35. Nb2 {[%clk 0:00:24]}  Ke7 {[%clk 0:00:23]} 36. Nd3 {[%clk 0:00:25]}  Rh5 {[%clk 0:00:23]} 37. Re1+ {[%clk 0:00:25]}  Kd6 {[%clk 0:00:20]} 38. Re2 {[%clk 0:00:24]}  Rxh6 {[%clk 0:00:20]} 39. Ne5 {[%clk 0:00:24]}  Be6 {[%clk 0:00:19]} 40. Nd3 {[%clk 0:00:21]}  b5 {[%clk 0:00:13]} 41. Rf2 {[%clk 0:00:18]}  c4 {[%clk 0:00:13]} 42. bxc4 {[%clk 0:00:18]}  bxc4 {[%clk 0:00:14]} 43. Nf4 {[%clk 0:00:19]}  Rf6 {[%clk 0:00:12]} 44. Nh3 {[%clk 0:00:14]}  Rxf2+ {[%clk 0:00:11]} 45. Nxf2 {[%clk 0:00:15]}  Ke5 {[%clk 0:00:12]} 46. Nh1 {[%clk 0:00:13]}  Kf4 {[%clk 0:00:11]} 47. Nf2 {[%clk 0:00:14]}  Bf5 {[%clk 0:00:12]} 48. Nd1 {[%clk 0:00:14]}  c3+ {[%clk 0:00:12]} 49. Kc1 {[%clk 0:00:14]}  Kf3 {[%clk 0:00:11]} 50. a4 {[%clk 0:00:14]}  Ke2 {[%clk 0:00:11]} 51. a5 {[%clk 0:00:14]}  c2 {[%clk 0:00:06]} 52. Nc3+ {[%clk 0:00:13]}  Ke1 {[%clk 0:00:02]} 53. Na2 {[%clk 0:00:07]}  d3 {[%clk 0:00:02]} 54. Kb2 {[%clk 0:00:08]}  d2 {[%clk 0:00:02]} 55. Kb3 {[%clk 0:00:09]}  c1=Q {[%clk 0:00:01]} 56. Nc3 {[%clk 0:00:10]}  Qxc3+ {[%clk 0:00:01]} 57. Kxc3 {[%clk 0:00:10]}  d1=Q {[%clk 0:00:02]} 58. Kc4 {[%clk 0:00:11]}  Qd6 {[%clk 0:00:02]} 59. Kc3 {[%clk 0:00:11]}  Qc5+ {[%clk 0:00:02]} 60. Kb2 {[%clk 0:00:12]}  Qxa5 {[%clk 0:00:03]} 61. Kc1 {[%clk 0:00:11]}  Qb5 {[%clk 0:00:04]} 1/2-1/2


[Site "https://www.chess.com"]

[Event "Titled Tuesday Blitz June 27 Early 2023"]
[White "Ingebretsen, Jens E"]
[Black "whiteglovethief"]
[WhiteFideId "1522965"]
[WhiteElo "2599"]
[BlackElo "2447"]
[Result "1/2-1/2"]
[Round "5"]
[TimeControl "180+2"]
[Date "2023.06.27"]
[WhiteClock "0:00:07"]
[BlackClock "0:00:14"]
[Board "117"]

1. d4 {[%clk 0:02:17]}  Nf6 {[%clk 0:02:51]} 2. c4 {[%clk 0:02:18]}  e6 {[%clk 0:02:50]} 3. Nc3 {[%clk 0:02:17]}  Bb4 {[%clk 0:02:50]} 4. e3 {[%clk 0:02:10]}  c5 {[%clk 0:02:48]} 5. Bd3 {[%clk 0:02:10]}  O-O {[%clk 0:02:47]} 6. Nf3 {[%clk 0:02:11]}  Nc6 {[%clk 0:02:46]} 7. O-O {[%clk 0:02:11]}  d5 {[%clk 0:02:40]} 8. a3 {[%clk 0:02:10]}  Bxc3 {[%clk 0:02:40]} 9. bxc3 {[%clk 0:02:11]}  dxc4 {[%clk 0:02:40]} 10. Bxc4 {[%clk 0:02:12]}  Qc7 {[%clk 0:02:40]} 11. Bb2 {[%clk 0:02:11]}  Rd8 {[%clk 0:02:39]} 12. Qe2 {[%clk 0:02:10]}  b6 {[%clk 0:02:37]} 13. e4 {[%clk 0:02:09]}  cxd4 {[%clk 0:02:36]} 14. cxd4 {[%clk 0:02:09]}  Bb7 {[%clk 0:02:37]} 15. Rac1 {[%clk 0:02:09]}  Qe7 {[%clk 0:02:36]} 16. Rfe1 {[%clk 0:01:53]}  Rac8 {[%clk 0:02:26]} 17. d5 {[%clk 0:01:48]}  exd5 {[%clk 0:02:23]} 18. Bxf6 {[%clk 0:01:48]}  Qxf6 {[%clk 0:02:14]} 19. Bxd5 {[%clk 0:01:49]}  Na5 {[%clk 0:02:00]} 20. e5 {[%clk 0:01:45]}  Qe7 {[%clk 0:01:57]} 21. Rxc8 {[%clk 0:01:32]}  Rxc8 {[%clk 0:01:54]} 22. Qa2 {[%clk 0:01:20]}  Bxd5 {[%clk 0:01:50]} 23. Qxd5 {[%clk 0:01:21]}  Rd8 {[%clk 0:01:29]} 24. Qa2 {[%clk 0:01:19]}  Nc6 {[%clk 0:01:24]} 25. e6 {[%clk 0:01:14]}  fxe6 {[%clk 0:01:21]} 26. Rxe6 {[%clk 0:01:11]}  Qf7 {[%clk 0:01:20]} 27. Qe2 {[%clk 0:01:01]}  Qd7 {[%clk 0:00:53]} 28. g3 {[%clk 0:00:46]}  Qd1+ {[%clk 0:00:52]} 29. Qxd1 {[%clk 0:00:46]}  Rxd1+ {[%clk 0:00:53]} 30. Kg2 {[%clk 0:00:47]}  Na5 {[%clk 0:00:46]} 31. Ng5 {[%clk 0:00:44]}  g6 {[%clk 0:00:42]} 32. Re7 {[%clk 0:00:45]}  h6 {[%clk 0:00:41]} 33. Ne6 {[%clk 0:00:40]}  Re1 {[%clk 0:00:38]} 34. Rg7+ {[%clk 0:00:22]}  Kh8 {[%clk 0:00:39]} 35. Rxg6 {[%clk 0:00:22]}  Kh7 {[%clk 0:00:39]} 36. Nf4 {[%clk 0:00:22]}  Nc4 {[%clk 0:00:40]} 37. a4 {[%clk 0:00:21]}  Ra1 {[%clk 0:00:39]} 38. Rc6 {[%clk 0:00:20]}  Rxa4 {[%clk 0:00:39]} 39. Rc7+ {[%clk 0:00:21]}  Kg8 {[%clk 0:00:39]} 40. Nd5 {[%clk 0:00:20]}  Ne5 {[%clk 0:00:33]} 41. h4 {[%clk 0:00:19]}  Rd4 {[%clk 0:00:32]} 42. Nf6+ {[%clk 0:00:17]}  Kf8 {[%clk 0:00:32]} 43. f4 {[%clk 0:00:17]}  Nc4 {[%clk 0:00:29]} 44. Rxa7 {[%clk 0:00:16]}  b5 {[%clk 0:00:28]} 45. Nd7+ {[%clk 0:00:15]}  Ke8 {[%clk 0:00:27]} 46. Ne5 {[%clk 0:00:16]}  Nxe5 {[%clk 0:00:26]} 47. fxe5 {[%clk 0:00:17]}  Re4 {[%clk 0:00:27]} 48. Rh7 {[%clk 0:00:13]}  Rxe5 {[%clk 0:00:25]} 49. Rxh6 {[%clk 0:00:13]}  Kd7 {[%clk 0:00:24]} 50. Rb6 {[%clk 0:00:14]}  Kc7 {[%clk 0:00:25]} 51. Ra6 {[%clk 0:00:14]}  b4 {[%clk 0:00:24]} 52. Kf3 {[%clk 0:00:14]}  b3 {[%clk 0:00:22]} 53. Ra1 {[%clk 0:00:14]}  Kc6 {[%clk 0:00:21]} 54. Kf4 {[%clk 0:00:14]}  Re2 {[%clk 0:00:20]} 55. g4 {[%clk 0:00:15]}  b2 {[%clk 0:00:18]} 56. Rb1 {[%clk 0:00:15]}  Kc5 {[%clk 0:00:19]} 57. h5 {[%clk 0:00:15]}  Kc4 {[%clk 0:00:20]} 58. h6 {[%clk 0:00:15]}  Rh2 {[%clk 0:00:20]} 59. g5 {[%clk 0:00:15]}  Kb3 {[%clk 0:00:20]} 60. Kf5 {[%clk 0:00:15]}  Kc2 {[%clk 0:00:20]} 61. Rxb2+ {[%clk 0:00:15]}  Kxb2 {[%clk 0:00:21]} 62. Kg6 {[%clk 0:00:15]}  Kc3 {[%clk 0:00:21]} 63. h7 {[%clk 0:00:15]}  Kd4 {[%clk 0:00:21]} 64. Kg7 {[%clk 0:00:14]}  Ke5 {[%clk 0:00:21]} 65. g6 {[%clk 0:00:13]}  Kf5 {[%clk 0:00:22]} 66. Kf7 {[%clk 0:00:13]}  Rh6 {[%clk 0:00:19]} 67. g7 {[%clk 0:00:06]}  Rxh7 {[%clk 0:00:19]} 68. Kf8 {[%clk 0:00:06]}  Rxg7 {[%clk 0:00:14]} 69. Kxg7 {[%clk 0:00:07]} 1/2-1/2


[Site "https://www.chess.com"]

[Event "Titled Tuesday Blitz June 27 Early 2023"]
[White "Ovchinnikov, Vsevolod"]
[Black "Lacasa Diaz, Jose Antonio"]
[WhiteFideId "24176842"]
[BlackFideId "2203375"]
[WhiteElo "2593"]
[BlackElo "2439"]
[Result "1-0"]
[Round "5"]
[TimeControl "180+2"]
[Date "2023.06.27"]
[WhiteClock "0:00:07"]
[BlackClock "0:00:00"]
[Board "120"]

1. d4 {[%clk 0:03:00]}  d5 {[%clk 0:02:59]} 2. c4 {[%clk 0:03:00]}  e6 {[%clk 0:02:59]} 3. Nf3 {[%clk 0:03:00]}  c5 {[%clk 0:03:00]} 4. g3 {[%clk 0:03:00]}  cxd4 {[%clk 0:02:56]} 5. Nxd4 {[%clk 0:03:00]}  e5 {[%clk 0:02:55]} 6. Nf3 {[%clk 0:02:59]}  d4 {[%clk 0:02:54]} 7. Bg2 {[%clk 0:02:57]}  Nc6 {[%clk 0:02:54]} 8. O-O {[%clk 0:02:57]}  e4 {[%clk 0:02:45]} 9. Ne1 {[%clk 0:01:58]}  Nf6 {[%clk 0:02:40]} 10. Bg5 {[%clk 0:01:58]}  Bf5 {[%clk 0:02:39]} 11. Nd2 {[%clk 0:01:58]}  Qe7 {[%clk 0:02:15]} 12. Bxf6 {[%clk 0:00:59]}  gxf6 {[%clk 0:02:15]} 13. Qb1 {[%clk 0:00:50]}  d3 {[%clk 0:01:31]} 14. exd3 {[%clk 0:00:49]}  exd3 {[%clk 0:01:30]} 15. Nef3 {[%clk 0:00:40]}  O-O-O {[%clk 0:01:28]} 16. Re1 {[%clk 0:00:41]}  Qd7 {[%clk 0:01:24]} 17. a3 {[%clk 0:00:39]}  Nd4 {[%clk 0:01:11]} 18. Nxd4 {[%clk 0:00:32]}  Qxd4 {[%clk 0:01:12]} 19. Qd1 {[%clk 0:00:29]}  Bg4 {[%clk 0:01:02]} 20. Qb3 {[%clk 0:00:22]}  Qb6 {[%clk 0:00:52]} 21. Qxb6 {[%clk 0:00:10]}  axb6 {[%clk 0:00:52]} 22. h3 {[%clk 0:00:09]}  Be6 {[%clk 0:00:38]} 23. Rad1 {[%clk 0:00:03]}  f5 {[%clk 0:00:19]} 24. Bf1 {[%clk 0:00:03]}  Bg7 {[%clk 0:00:19]} 25. b4 {[%clk 0:00:02]}  Bb2 {[%clk 0:00:14]} 26. Re3 {[%clk 0:00:03]}  Bxa3 {[%clk 0:00:14]} 27. Rb1 {[%clk 0:00:02]}  f4 {[%clk 0:00:09]} 28. gxf4 {[%clk 0:00:02]}  Rhe8 {[%clk 0:00:08]} 29. Rb3 {[%clk 0:00:02]}  Bc1 {[%clk 0:00:08]} 30. Rexd3 {[%clk 0:00:02]}  Bxd2 {[%clk 0:00:06]} 31. Rf3 {[%clk 0:00:02]}  Be1 {[%clk 0:00:05]} 32. Kh2 {[%clk 0:00:02]}  Rd2 {[%clk 0:00:03]} 33. Bg2 {[%clk 0:00:02]}  Rxf2 {[%clk 0:00:02]} 34. Rxf2 {[%clk 0:00:02]}  Bxf2 {[%clk 0:00:03]} 35. Rc3 {[%clk 0:00:03]}  Be1 {[%clk 0:00:02]} 36. Rc1 {[%clk 0:00:03]}  Bxb4 {[%clk 0:00:02]} 37. Rc2 {[%clk 0:00:03]}  Bc5 {[%clk 0:00:03]} 38. Bf3 {[%clk 0:00:03]}  Rd8 {[%clk 0:00:03]} 39. Rg2 {[%clk 0:00:04]}  Rd3 {[%clk 0:00:01]} 40. Be4 {[%clk 0:00:04]}  Rd4 {[%clk 0:00:01]} 41. Bxh7 {[%clk 0:00:04]}  Rxf4 {[%clk 0:00:01]} 42. Re2 {[%clk 0:00:04]}  Bd6 {[%clk 0:00:01]} 43. Be4 {[%clk 0:00:05]}  Rxe4+ {[%clk 0:00:01]} 44. Kg1 {[%clk 0:00:05]}  Rxe2 {[%clk 0:00:01]} 45. Kf1 {[%clk 0:00:06]}  Rc2 {[%clk 0:00:00]} 46. Ke1 {[%clk 0:00:07]} 1-0


[Site "https://www.chess.com"]

[Event "Titled Tuesday Blitz June 27 Early 2023"]
[White "HamedWafa4"]
[Black "Omariev, Maksim"]
[BlackFideId "4193423"]
[WhiteElo "2592"]
[BlackElo "2430"]
[Result "1-0"]
[Round "5"]
[TimeControl "180+2"]
[Date "2023.06.27"]
[WhiteClock "0:01:33"]
[BlackClock "0:00:00"]
[Board "122"]

1. e4 {[%clk 0:02:58]}  c5 {[%clk 0:02:57]} 2. Nf3 {[%clk 0:02:59]}  d6 {[%clk 0:02:57]} 3. Bb5+ {[%clk 0:02:54]}  Nd7 {[%clk 0:02:56]} 4. O-O {[%clk 0:02:53]}  a6 {[%clk 0:02:56]} 5. Be2 {[%clk 0:02:52]}  e5 {[%clk 0:02:55]} 6. a4 {[%clk 0:02:51]}  b6 {[%clk 0:02:53]} 7. Re1 {[%clk 0:02:51]}  Bb7 {[%clk 0:02:51]} 8. Bf1 {[%clk 0:02:51]}  Ngf6 {[%clk 0:02:47]} 9. d3 {[%clk 0:02:50]}  g6 {[%clk 0:02:41]} 10. h3 {[%clk 0:02:47]}  Bg7 {[%clk 0:02:41]} 11. g4 {[%clk 0:02:47]}  O-O {[%clk 0:02:36]} 12. Bg2 {[%clk 0:02:47]}  d5 {[%clk 0:02:34]} 13. Nc3 {[%clk 0:02:41]}  d4 {[%clk 0:01:59]} 14. Ne2 {[%clk 0:02:39]}  b5 {[%clk 0:01:57]} 15. Ng3 {[%clk 0:02:35]}  c4 {[%clk 0:01:54]} 16. g5 {[%clk 0:02:32]}  Ne8 {[%clk 0:01:52]} 17. h4 {[%clk 0:02:31]}  Nc5 {[%clk 0:01:49]} 18. h5 {[%clk 0:02:24]}  cxd3 {[%clk 0:01:43]} 19. cxd3 {[%clk 0:02:22]}  bxa4 {[%clk 0:01:26]} 20. Bh3 {[%clk 0:02:16]}  Bc6 {[%clk 0:01:20]} 21. Kh2 {[%clk 0:02:11]}  Bb5 {[%clk 0:01:06]} 22. Ra3 {[%clk 0:02:09]}  Nc7 {[%clk 0:00:50]} 23. Rg1 {[%clk 0:02:08]}  N7e6 {[%clk 0:00:40]} 24. Nf5 {[%clk 0:02:06]}  gxf5 {[%clk 0:00:30]} 25. exf5 {[%clk 0:02:07]}  Nf4 {[%clk 0:00:25]} 26. Bxf4 {[%clk 0:02:05]}  exf4 {[%clk 0:00:26]} 27. h6 {[%clk 0:02:03]}  Bh8 {[%clk 0:00:24]} 28. g6 {[%clk 0:01:49]}  fxg6 {[%clk 0:00:24]} 29. fxg6 {[%clk 0:01:49]}  hxg6 {[%clk 0:00:23]} 30. Rxg6+ {[%clk 0:01:50]}  Kf7 {[%clk 0:00:05]} 31. Qg1 {[%clk 0:01:43]}  Rg8 {[%clk 0:00:02]} 32. Bf5 {[%clk 0:01:39]}  Ke7 {[%clk 0:00:00]} 33. Qg5+ {[%clk 0:01:33]} 1-0


[Site "https://www.chess.com"]

[Event "Titled Tuesday Blitz June 27 Early 2023"]
[White "Koepke, Christian"]
[Black "Nozdrachev, Leonid"]
[WhiteFideId "4655737"]
[BlackFideId "24113433"]
[WhiteElo "2415"]
[BlackElo "2574"]
[Result "1/2-1/2"]
[Round "5"]
[TimeControl "180+2"]
[Date "2023.06.27"]
[WhiteClock "0:00:08"]
[BlackClock "0:00:09"]
[Board "124"]

1. Nf3 {[%clk 0:03:00]}  c5 {[%clk 0:02:56]} 2. e4 {[%clk 0:02:59]}  e6 {[%clk 0:02:54]} 3. d4 {[%clk 0:02:56]}  cxd4 {[%clk 0:02:53]} 4. Nxd4 {[%clk 0:02:57]}  Nf6 {[%clk 0:02:52]} 5. Nc3 {[%clk 0:02:55]}  Bb4 {[%clk 0:02:50]} 6. e5 {[%clk 0:02:54]}  Ne4 {[%clk 0:02:50]} 7. Qg4 {[%clk 0:02:53]}  Qa5 {[%clk 0:02:47]} 8. Qxe4 {[%clk 0:01:43]}  Bxc3+ {[%clk 0:02:45]} 9. bxc3 {[%clk 0:01:40]}  Qxc3+ {[%clk 0:02:46]} 10. Kd1 {[%clk 0:01:38]}  Qxa1 {[%clk 0:02:44]} 11. Nb5 {[%clk 0:01:22]}  Nc6 {[%clk 0:02:23]} 12. Nc7+ {[%clk 0:01:12]}  Kd8 {[%clk 0:02:21]} 13. Nxa8 {[%clk 0:01:10]}  Qxe5 {[%clk 0:02:16]} 14. Qh4+ {[%clk 0:01:02]}  f6 {[%clk 0:02:08]} 15. Bd3 {[%clk 0:01:00]}  b6 {[%clk 0:02:00]} 16. Qg3 {[%clk 0:00:48]}  Qxg3 {[%clk 0:01:48]} 17. hxg3 {[%clk 0:00:49]}  Bb7 {[%clk 0:01:48]} 18. Nxb6 {[%clk 0:00:48]}  axb6 {[%clk 0:01:47]} 19. Rxh7 {[%clk 0:00:44]}  Rxh7 {[%clk 0:01:37]} 20. Bxh7 {[%clk 0:00:45]}  Nb4 {[%clk 0:01:37]} 21. a3 {[%clk 0:00:44]}  Nd5 {[%clk 0:01:22]} 22. Bd2 {[%clk 0:00:44]}  f5 {[%clk 0:01:19]} 23. Bg6 {[%clk 0:00:39]}  Ke7 {[%clk 0:01:18]} 24. Bh5 {[%clk 0:00:38]}  Nf6 {[%clk 0:01:15]} 25. Bf3 {[%clk 0:00:37]}  Be4 {[%clk 0:01:14]} 26. Bb4+ {[%clk 0:00:23]}  d6 {[%clk 0:01:08]} 27. Bc3 {[%clk 0:00:23]}  Bxf3+ {[%clk 0:00:48]} 28. gxf3 {[%clk 0:00:23]}  e5 {[%clk 0:00:45]} 29. a4 {[%clk 0:00:23]}  Ke6 {[%clk 0:00:42]} 30. Ke2 {[%clk 0:00:22]}  Kd5 {[%clk 0:00:39]} 31. Kd3 {[%clk 0:00:20]}  Nd7 {[%clk 0:00:39]} 32. Bb4 {[%clk 0:00:17]}  e4+ {[%clk 0:00:33]} 33. fxe4+ {[%clk 0:00:17]}  fxe4+ {[%clk 0:00:33]} 34. Ke3 {[%clk 0:00:18]}  Ne5 {[%clk 0:00:32]} 35. Bc3 {[%clk 0:00:14]}  Nc4+ {[%clk 0:00:29]} 36. Kf4 {[%clk 0:00:14]}  g6 {[%clk 0:00:26]} 37. Kg5 {[%clk 0:00:14]}  Na3 {[%clk 0:00:26]} 38. Kxg6 {[%clk 0:00:13]}  Nxc2 {[%clk 0:00:26]} 39. g4 {[%clk 0:00:13]}  Kc4 {[%clk 0:00:25]} 40. Bf6 {[%clk 0:00:10]}  d5 {[%clk 0:00:25]} 41. Kf5 {[%clk 0:00:09]}  e3 {[%clk 0:00:16]} 42. fxe3 {[%clk 0:00:10]}  Nxe3+ {[%clk 0:00:17]} 43. Kf4 {[%clk 0:00:09]}  Nxg4 {[%clk 0:00:09]} 44. Kxg4 {[%clk 0:00:10]}  Kb4 {[%clk 0:00:07]} 45. Bd4 {[%clk 0:00:09]}  Kxa4 {[%clk 0:00:05]} 46. Bxb6 {[%clk 0:00:09]}  Kb5 {[%clk 0:00:06]} 47. Bf2 {[%clk 0:00:09]}  Kc4 {[%clk 0:00:07]} 48. Kf3 {[%clk 0:00:09]}  Kd3 {[%clk 0:00:08]} 49. Ba7 {[%clk 0:00:09]}  d4 {[%clk 0:00:09]} 50. Bxd4 {[%clk 0:00:08]} 1/2-1/2


[Site "https://www.chess.com"]

[Event "Titled Tuesday Blitz June 27 Early 2023"]
[White "Buscar, Michael"]
[Black "Aloma Vidal, Robert"]
[WhiteFideId "2603616"]
[BlackFideId "2260409"]
[WhiteElo "2402"]
[BlackElo "2569"]
[Result "0-1"]
[Round "5"]
[TimeControl "180+2"]
[Date "2023.06.27"]
[WhiteClock "0:00:24"]
[BlackClock "0:01:12"]
[Board "128"]

1. d4 {[%clk 0:02:52]}  d5 {[%clk 0:02:59]} 2. c4 {[%clk 0:02:51]}  c6 {[%clk 0:03:00]} 3. Nf3 {[%clk 0:02:48]}  Nf6 {[%clk 0:03:00]} 4. g3 {[%clk 0:02:48]}  Bf5 {[%clk 0:02:55]} 5. Bg2 {[%clk 0:02:48]}  e6 {[%clk 0:02:55]} 6. O-O {[%clk 0:02:47]}  h6 {[%clk 0:02:54]} 7. cxd5 {[%clk 0:02:46]}  exd5 {[%clk 0:02:54]} 8. Ne5 {[%clk 0:02:46]}  Nbd7 {[%clk 0:02:54]} 9. Nxd7 {[%clk 0:02:40]}  Qxd7 {[%clk 0:02:54]} 10. Nd2 {[%clk 0:02:40]}  Be7 {[%clk 0:02:53]} 11. Nf3 {[%clk 0:02:41]}  O-O {[%clk 0:02:49]} 12. Ne5 {[%clk 0:02:41]}  Qe6 {[%clk 0:02:47]} 13. Qb3 {[%clk 0:02:38]}  Rab8 {[%clk 0:02:46]} 14. Bf4 {[%clk 0:02:35]}  Nh5 {[%clk 0:02:35]} 15. Nd3 {[%clk 0:02:24]}  Nxf4 {[%clk 0:02:13]} 16. Nxf4 {[%clk 0:02:22]}  Qd7 {[%clk 0:02:14]} 17. Qc3 {[%clk 0:02:04]}  Rfe8 {[%clk 0:02:11]} 18. Rfe1 {[%clk 0:01:56]}  Bd6 {[%clk 0:02:11]} 19. Nd3 {[%clk 0:01:49]}  Be4 {[%clk 0:02:08]} 20. Nc5 {[%clk 0:01:44]}  Bxc5 {[%clk 0:02:07]} 21. Qxc5 {[%clk 0:01:40]}  a6 {[%clk 0:02:02]} 22. b4 {[%clk 0:01:38]}  Bxg2 {[%clk 0:01:55]} 23. Kxg2 {[%clk 0:01:38]}  h5 {[%clk 0:01:54]} 24. h4 {[%clk 0:01:33]}  Re4 {[%clk 0:01:52]} 25. a4 {[%clk 0:01:06]}  Rbe8 {[%clk 0:01:50]} 26. e3 {[%clk 0:01:04]}  Qf5 {[%clk 0:01:30]} 27. b5 {[%clk 0:01:00]}  axb5 {[%clk 0:01:29]} 28. axb5 {[%clk 0:01:00]}  g5 {[%clk 0:01:26]} 29. hxg5 {[%clk 0:00:55]}  h4 {[%clk 0:01:26]} 30. gxh4 {[%clk 0:00:33]}  Rxh4 {[%clk 0:01:14]} 31. Qd6 {[%clk 0:00:27]}  Qh3+ {[%clk 0:01:12]} 32. Kg1 {[%clk 0:00:24]}  Qh1# {[%clk 0:01:12]} 0-1


[Site "https://www.chess.com"]

[Event "Titled Tuesday Blitz June 27 Early 2023"]
[White "Sreyas Payyappat"]
[Black "Mickiewicz, Piotr"]
[WhiteFideId "46674969"]
[BlackFideId "1114891"]
[WhiteElo "2567"]
[BlackElo "2382"]
[Result "0-1"]
[Round "5"]
[TimeControl "180+2"]
[Date "2023.06.27"]
[WhiteClock "0:00:10"]
[BlackClock "0:00:40"]
[Board "129"]

1. e4 {[%clk 0:03:00]}  c6 {[%clk 0:02:58]} 2. d4 {[%clk 0:02:59]}  d5 {[%clk 0:02:59]} 3. Nc3 {[%clk 0:02:58]}  dxe4 {[%clk 0:02:58]} 4. Nxe4 {[%clk 0:02:59]}  Bf5 {[%clk 0:02:57]} 5. Ng3 {[%clk 0:02:59]}  Bg6 {[%clk 0:02:57]} 6. Nf3 {[%clk 0:02:59]}  Nd7 {[%clk 0:02:56]} 7. h4 {[%clk 0:02:58]}  h6 {[%clk 0:02:56]} 8. Bd3 {[%clk 0:02:56]}  Bxd3 {[%clk 0:02:53]} 9. Qxd3 {[%clk 0:02:57]}  e6 {[%clk 0:02:52]} 10. Bd2 {[%clk 0:02:48]}  Ngf6 {[%clk 0:02:52]} 11. O-O-O {[%clk 0:02:45]}  Be7 {[%clk 0:02:50]} 12. Rde1 {[%clk 0:02:42]}  a5 {[%clk 0:02:39]} 13. Ne4 {[%clk 0:02:38]}  Nxe4 {[%clk 0:02:36]} 14. Qxe4 {[%clk 0:02:39]}  Nf6 {[%clk 0:02:35]} 15. Qe2 {[%clk 0:02:38]}  a4 {[%clk 0:02:29]} 16. g4 {[%clk 0:02:29]}  Nd5 {[%clk 0:02:26]} 17. c4 {[%clk 0:02:08]}  Nc7 {[%clk 0:02:13]} 18. Bc3 {[%clk 0:01:55]}  b5 {[%clk 0:02:11]} 19. d5 {[%clk 0:01:41]}  bxc4 {[%clk 0:02:09]} 20. dxc6 {[%clk 0:01:22]}  a3 {[%clk 0:02:00]} 21. Qxc4 {[%clk 0:01:13]}  axb2+ {[%clk 0:01:59]} 22. Kb1 {[%clk 0:01:13]}  O-O {[%clk 0:01:52]} 23. Ne5 {[%clk 0:01:07]}  Nd5 {[%clk 0:01:49]} 24. Bxb2 {[%clk 0:01:05]}  Qa5 {[%clk 0:01:39]} 25. Nd7 {[%clk 0:00:48]}  Rfc8 {[%clk 0:01:37]} 26. a3 {[%clk 0:00:45]}  Ra6 {[%clk 0:01:32]} 27. Qd4 {[%clk 0:00:26]}  Bf6 {[%clk 0:01:28]} 28. Nxf6+ {[%clk 0:00:23]}  gxf6 {[%clk 0:01:29]} 29. g5 {[%clk 0:00:20]}  h5 {[%clk 0:00:51]} 30. gxf6 {[%clk 0:00:18]}  Rb8 {[%clk 0:00:50]} 31. Rhg1+ {[%clk 0:00:14]}  Kf8 {[%clk 0:00:49]} 32. Rg5 {[%clk 0:00:13]}  Qxe1+ {[%clk 0:00:46]} 33. Ka2 {[%clk 0:00:13]}  Nb4+ {[%clk 0:00:40]} 34. Kb3 {[%clk 0:00:10]}  Nxc6+ {[%clk 0:00:40]} 0-1


[Site "https://www.chess.com"]

[Event "Titled Tuesday Blitz June 27 Early 2023"]
[White "Adireddy Arjun"]
[Black "Sebag, Marie"]
[WhiteFideId "25647709"]
[BlackFideId "617822"]
[WhiteElo "2344"]
[BlackElo "2559"]
[Result "0-1"]
[Round "5"]
[TimeControl "180+2"]
[Date "2023.06.27"]
[WhiteClock "0:00:00"]
[BlackClock "0:00:27"]
[Board "132"]

1. e4 {[%clk 0:03:00]}  c6 {[%clk 0:02:58]} 2. d4 {[%clk 0:02:54]}  d5 {[%clk 0:02:58]} 3. exd5 {[%clk 0:02:55]}  cxd5 {[%clk 0:02:58]} 4. Nf3 {[%clk 0:02:56]}  Nc6 {[%clk 0:02:53]} 5. Bd3 {[%clk 0:02:52]}  Bg4 {[%clk 0:02:50]} 6. c3 {[%clk 0:02:52]}  e6 {[%clk 0:02:49]} 7. O-O {[%clk 0:02:50]}  Bd6 {[%clk 0:02:48]} 8. Re1 {[%clk 0:02:48]}  Qc7 {[%clk 0:02:46]} 9. h3 {[%clk 0:02:47]}  Bh5 {[%clk 0:02:46]} 10. Nbd2 {[%clk 0:02:46]}  Nge7 {[%clk 0:02:45]} 11. Nf1 {[%clk 0:02:44]}  h6 {[%clk 0:02:28]} 12. Be2 {[%clk 0:02:39]}  g5 {[%clk 0:02:26]} 13. N3d2 {[%clk 0:01:54]}  Bxe2 {[%clk 0:02:14]} 14. Qxe2 {[%clk 0:01:55]}  Ng6 {[%clk 0:02:13]} 15. Nf3 {[%clk 0:01:53]}  O-O-O {[%clk 0:02:11]} 16. b4 {[%clk 0:01:53]}  Kb8 {[%clk 0:02:06]} 17. a4 {[%clk 0:01:52]}  Nf4 {[%clk 0:02:02]} 18. Bxf4 {[%clk 0:01:51]}  Bxf4 {[%clk 0:02:01]} 19. a5 {[%clk 0:01:43]}  h5 {[%clk 0:01:57]} 20. g3 {[%clk 0:01:28]}  g4 {[%clk 0:01:56]} 21. N3h2 {[%clk 0:00:38]}  Bd6 {[%clk 0:01:29]} 22. hxg4 {[%clk 0:00:37]}  hxg4 {[%clk 0:01:28]} 23. Nxg4 {[%clk 0:00:38]}  f5 {[%clk 0:01:27]} 24. Ne5 {[%clk 0:00:28]}  Bxe5 {[%clk 0:01:18]} 25. dxe5 {[%clk 0:00:29]}  Rh6 {[%clk 0:01:17]} 26. Nh2 {[%clk 0:00:21]}  Rdh8 {[%clk 0:01:16]} 27. Nf3 {[%clk 0:00:17]}  Qh7 {[%clk 0:01:10]} 28. Kg2 {[%clk 0:00:09]}  f4 {[%clk 0:01:00]} 29. Nh4 {[%clk 0:00:03]}  fxg3 {[%clk 0:00:35]} 30. fxg3 {[%clk 0:00:04]}  Rg8 {[%clk 0:00:35]} 31. Kh3 {[%clk 0:00:03]}  Qf5+ {[%clk 0:00:29]} 32. g4 {[%clk 0:00:02]}  Qg5 {[%clk 0:00:27]} 33. Qf2 {[%clk 0:00:00]}  Rgh8 {[%clk 0:00:27]} 0-1


[Site "https://www.chess.com"]